[Event "23rd OIBM 2019"]
[Site "Gmund am Tegernsee"]
[Date "2019.10.26"]
[Round "1.16"]
[White "Prusikin, Michael"]
[Black "Nehyba, Martin"]
[Result "1-0"]
[ECO "A85"]
[WhiteElo "2521"]
[BlackElo "2129"]
[Annotator "ChessBase"]
[PlyCount "55"]
[EventDate "2019.10.17"]
[EventType "swiss"]
[EventCountry "GER"]
[SourceTitle "playchess.com"]
[Source "ChessBase"]
[SourceQuality "1"]
[TimeControl "40/5400+30:1800+30"]

1. d4 {[%emt 0:00:00]} f5 {[%emt 0:00:00]} 2. c4 {[%emt 0:00:03]} Nf6 {[%emt 0:00:12]} 3. Nc3 {[%emt 0:00:07]} g6 {[%emt 0:00:10]} 4. h4 {[%emt 0:00:27]} Bg7 {[%emt 0:00:47]} 5. h5 {[%emt 0:00:11]} d6 {[%emt 0:07:19]} 6. hxg6 {[%emt 0:04:16]} hxg6 {[%emt 0:00:03]} 7. Rxh8+ {[%emt 0:00:05]} Bxh8 {[%emt 0:00:07]} 8. Nf3 {[%emt 0:00:26]} Nc6 {[%emt 0:00:44]} 9. Ng5 {[%emt 0:13:40]} e6 {[%emt 0:17:39]} 10. d5 {[%emt 0:02:55]} exd5 {[%emt 0:03:05]} 11. cxd5 {[%emt 0:01:27]} Ne5 {[%emt 0:00:08]} 12. Bf4 {[%emt 0:14:23]} Nh5 {[%emt 0:02:11]} 13. e3 {[%emt 0:03:28]} Qe7 {[%emt 0:15:32]} 14. Bb5+ {[%emt 0:09:11]} Kf8 {[%emt 0:10:12]} 15. Kf1 {[%emt 0:00:38]} Nxf4 {[%emt 0:00:52]} 16. exf4 {[%emt 0:00:04]} Nf7 {[%emt 0:00:15]} 17. Nf3 {[%emt 0:09:16]} Bd7 {[%emt 0:13:57]} 18. Bxd7 {[%emt 0:07:30]} Qxd7 {[%emt 0:00:02]} 19. Nh4 {[%emt 0:04:19]} Bf6 {[%emt 0:10:39]} 20. Nxg6+ {[%emt 0:01:07]} Kg7 {[%emt 0:00:05]} 21. Qh5 {[%emt 0:00:47]} Nh6 {[%emt 0:08:44]} 22. Nh4 {[%emt 0:00:59]} Bxh4 {[%emt 0:00:01]} 23. Qxh4 {[%emt 0:00:06]} Rh8 {[%emt 0:00:07]} 24. Re1 {[%emt 0:06:39]} Nf7 {[%emt 0:05:06]} 25. Qg3+ {[%emt 0:00:34]} Kf8 {[%emt 0:00:17]} 26. Kg1 {[%emt 0:01:37]} Qd8 {[%emt 0:03:40]} 27. Nb5 {[%emt 0:01:01]} Rg8 {[%emt 0:00:56]} 28. Nd4 {[%emt 0:02:44]} 1-0

[Event "23rd OIBM 2019"]
[Site "Gmund am Tegernsee"]
[Date "2019.10.26"]
[Round "1.17"]
[White "Kaeding, Rainer"]
[Black "Gukesh D"]
[Result "0-1"]
[ECO "A15"]
[WhiteElo "2127"]
[BlackElo "2520"]
[Annotator "RC"]
[PlyCount "76"]
[EventDate "2019.10.17"]
[EventType "swiss"]
[EventCountry "GER"]
[SourceTitle "playchess.com"]
[Source "ChessBase"]
[SourceQuality "1"]
[TimeControl "40/5400+30:1800+30"]

1. c4 {[%emt 0:00:00]} Nf6 {[%emt 0:07:22]} 2. g3 {[%emt 0:00:00]} g6 {[%emt 0:01:30]} 3. Bg2 {[%emt 0:00:25]} Bg7 {[%emt 0:00:07]} 4. Nc3 {[%emt 0:01:00]} O-O {[%emt 0:00:57]} 5. e4 {[%emt 0:00:52]} e5 {[%emt 0:01:27]} 6. Nge2 {[%emt 0:00:46]} Nc6 {[%emt 0:04:55]} 7. O-O {[%emt 0:01:10]} d6 {[%emt 0:00:42]} 8. d3 {[%emt 0:00:47]} Nd7 {[%emt 0:01:10]} 9. Be3 {[%emt 0:03:13]} Nc5 {[%emt 0:02:36]} 10. Nd5 {[%emt 0:03:45]} Bd7 {[%emt 0:08:42]} 11. Qd2 {[%emt 0:04:32]} Ne6 {[%emt 0:02:14]} 12. f4 {[%emt 0:03:38]} f5 {[%emt 0:23:24]} 13. Rae1 {[%emt 0:05:14]} fxe4 {[%emt 0:08:20]} 14. dxe4 {[%emt 0:00:32]} Ncd4 {[%emt 0:02:26]} 15. Kh1 {[%emt 0:09:33]} c6 {[%emt 0:01:48]} 16. Ndc3 {[%emt 0:00:22]} Qa5 {[%emt 0:07:15]} 17. Nc1 {[%emt 0:11:37]} Qb4 {[%emt 0:04:01]} 18. fxe5 {[%emt 0:06:05]} dxe5 {[%emt 0:01:04]} 19. b3 {[%emt 0:00:18]} Rad8 {[%emt 0:04:14]} 20. Nd3 {[%emt 0:02:00]} Qa5 {[%emt 0:00:31]} 21. Rxf8+ {[%emt 0:01:59]} Rxf8 {[%emt 0:00:43]} 22. Rf1 {[%emt 0:01:06]} Rxf1+ {[%emt 0:01:30]} 23. Bxf1 {[%emt 0:00:18]} Nf3 {[%emt 0:02:28]} 24. Qb2 {[%emt 0:00:37]} Ned4 {[%emt 0:01:39]} 25. b4 {[%emt 0:04:12]} Qd8 {[%emt 0:00:24]} 26. Qf2 {[%emt 0:02:35]} Bg4 {[%emt 0:04:59]} 27. h3 {[%emt 0:01:26]} Be6 {[%emt 0:02:07]} 28. Nc5 {[%emt 0:01:31]} Bc8 {[%emt 0:00:10]} 29. Ne2 {[%emt 0:14:56]} b6 {[%emt 0:02:21]} 30. Nb3 {[%emt 0:01:54]} Nxb3 {[%emt 0:00:34]} 31. axb3 {[%emt 0:04:10]} Nd2 {[%emt 0:00:10]} 32. Nc1 {[%emt 0:05:18]} Nxe4 {[%emt 0:01:04]} 33. Qf3 {[%emt 0:00:11]} Qf8 {[%emt 0:01:48]} 34. Bg2 {[%emt 0:02:30]} Qxf3 {[%emt 0:00:18]} 35. Bxf3 {[%emt 0:00:05]} Nxg3+ {[%emt 0:00:12]} 36. Kg2 {[%emt 0:00:14]} Nf5 {[%emt 0:01:02]} 37. Bg5 {[%emt 0:00:44]} Nd4 {[%emt 0:01:11]} 38. Be4 {[%emt 0:00:50]} Bf5 {[%emt 0:00:36]} 0-1

[Event "23rd OIBM 2019"]
[Site "Gmund am Tegernsee"]
[Date "2019.10.26"]
[Round "1.18"]
[White "Asadli, Vugar"]
[Black "Wenner, Tobias"]
[Result "1-0"]
[ECO "B10"]
[WhiteElo "2513"]
[BlackElo "2127"]
[Annotator "ChessBase"]
[PlyCount "47"]
[EventDate "2019.10.17"]
[EventType "swiss"]
[EventCountry "GER"]
[SourceTitle "playchess.com"]
[Source "ChessBase"]
[SourceQuality "1"]
[TimeControl "40/5400+30:1800+30"]

1. e4 {[%emt 0:00:00]} c6 {[%emt 0:00:00]} 2. c4 {[%emt 0:01:31]} d5 {[%emt 0:00:00]} 3. cxd5 {[%emt 0:00:04]} cxd5 {[%emt 0:00:07]} 4. exd5 {[%emt 0:00:03]} Nf6 {[%emt 0:00:38]} 5. Nc3 {[%emt 0:00:05]} Nxd5 {[%emt 0:02:34]} 6. Nf3 {[%emt 0:00:08]} e6 {[%emt 0:07:35]} 7. d4 {[%emt 0:00:17]} Be7 {[%emt 0:07:38]} 8. Bd3 {[%emt 0:00:08]} Nd7 {[%emt 0:05:32]} 9. Nxd5 {[%emt 0:04:19]} exd5 {[%emt 0:00:16]} 10. O-O {[%emt 0:03:54]} O-O {[%emt 0:00:11]} 11. Re1 {[%emt 0:00:31]} Re8 {[%emt 0:05:06]} 12. Bf4 {[%emt 0:01:29]} Nf8 {[%emt 0:01:47]} 13. Qb3 {[%emt 0:03:58]} Ne6 {[%emt 0:07:41]} 14. Be5 {[%emt 0:01:09]} f6 {[%emt 0:13:24]} 15. Bg3 {[%emt 0:04:53]} Bd6 {[%emt 0:02:45]} 16. Rac1 {[%emt 0:06:40]} Bxg3 {[%emt 0:00:57]} 17. hxg3 {[%emt 0:00:06]} Qd6 {[%emt 0:02:03]} 18. Qc2 {[%emt 0:08:25]} Bd7 {[%emt 0:04:05]} 19. Bxh7+ {[%emt 0:00:54]} Kh8 {[%emt 0:01:00]} 20. Bg6 {[%emt 0:00:33]} Rec8 {[%emt 0:01:00]} 21. Qf5 {[%emt 0:02:04]} Rxc1 {[%emt 0:11:33]} 22. Qh5+ {[%emt 0:01:01]} Kg8 {[%emt 0:00:03]} 23. Qh7+ {[%emt 0:00:08]} Kf8 {[%emt 0:00:12]} 24. Qh8+ {[%emt 0:00:18]} 1-0

[Event "23rd OIBM 2019"]
[Site "Gmund am Tegernsee"]
[Date "2019.10.26"]
[Round "1.19"]
[White "Konik, Michael"]
[Black "Engel, Luis"]
[Result "0-1"]
[ECO "B23"]
[WhiteElo "2126"]
[BlackElo "2507"]
[Annotator "ChessBase"]
[PlyCount "56"]
[EventDate "2019.10.17"]
[EventType "swiss"]
[EventCountry "GER"]
[SourceTitle "playchess.com"]
[Source "ChessBase"]
[SourceQuality "1"]
[TimeControl "40/5400+30:1800+30"]

1. e4 {[%emt 0:01:58]} c5 {[%emt 0:00:00]} 2. Nc3 {[%emt 0:00:07]} Nc6 {[%emt 0:00:00]} 3. f4 {[%emt 0:00:05]} g6 {[%emt 0:00:00]} 4. Nf3 {[%emt 0:00:10]} Bg7 {[%emt 0:00:03]} 5. Bb5 {[%emt 0:00:12]} Nd4 {[%emt 0:00:56]} 6. O-O {[%emt 0:00:18]} Nxb5 {[%emt 0:04:47]} 7. Nxb5 {[%emt 0:00:08]} Nf6 {[%emt 0:00:29]} 8. e5 {[%emt 0:09:50]} Nd5 {[%emt 0:02:30]} 9. Ng5 {[%emt 0:04:30]} O-O {[%emt 0:05:32]} 10. Ne4 {[%emt 0:11:04]} b6 {[%emt 0:06:30]} 11. d4 {[%emt 0:07:40]} cxd4 {[%emt 0:03:17]} 12. Qxd4 {[%emt 0:03:29]} Nc7 {[%emt 0:02:30]} 13. a4 {[%emt 0:06:37]} d6 {[%emt 0:02:52]} 14. Be3 {[%emt 0:06:01]} Nxb5 {[%emt 0:06:36]} 15. axb5 {[%emt 0:00:10]} Bb7 {[%emt 0:02:12]} 16. Nf2 {[%emt 0:04:21]} Qc7 {[%emt 0:05:47]} 17. Nd3 {[%emt 0:02:11]} Qxc2 {[%emt 0:01:17]} 18. Rf2 {[%emt 0:03:58]} Qb3 {[%emt 0:00:57]} 19. Nb4 {[%emt 0:01:54]} dxe5 {[%emt 0:02:05]} 20. fxe5 {[%emt 0:00:48]} Rfd8 {[%emt 0:01:13]} 21. Qf4 {[%emt 0:00:35]} g5 {[%emt 0:05:36]} 22. Qxg5 {[%emt 0:09:08]} Qxb4 {[%emt 0:01:01]} 23. Raf1 {[%emt 0:03:04]} f6 {[%emt 0:02:35]} 24. Qg3 {[%emt 0:03:57]} Qe4 {[%emt 0:02:30]} 25. exf6 {[%emt 0:01:30]} exf6 {[%emt 0:00:09]} 26. Rf4 {[%emt 0:02:27]} Qe5 {[%emt 0:00:38]} 27. Qf2 {[%emt 0:01:40]} Be4 {[%emt 0:01:27]} 28. Qh4 {[%emt 0:02:41]} f5 {[%emt 0:01:13]} 0-1

[Event "23rd OIBM 2019"]
[Site "Gmund am Tegernsee"]
[Date "2019.10.26"]
[Round "1.20"]
[White "Vetoshko, Volodymyr"]
[Black "Lettl, Gerhard"]
[Result "1-0"]
[ECO "C50"]
[WhiteElo "2506"]
[BlackElo "2126"]
[Annotator "RC"]
[PlyCount "117"]
[EventDate "2019.10.17"]
[EventType "swiss"]
[EventCountry "GER"]
[SourceTitle "playchess.com"]
[Source "ChessBase"]
[SourceQuality "1"]
[TimeControl "40/5400+30:1800+30"]

1. e4 {[%emt 0:00:54]} e5 {[%emt 0:00:00]} 2. Nf3 {[%emt 0:00:22]} Nc6 {[%emt 0:00:10]} 3. Bc4 {[%emt 0:00:17]} Nf6 {[%emt 0:00:18]} 4. d3 {[%emt 0:00:36]} Bc5 {[%emt 0:01:10]} 5. O-O {[%emt 0:01:15]} d6 {[%emt 0:00:19]} 6. c3 {[%emt 0:01:18]} O-O {[%emt 0:01:11]} 7. a4 {[%emt 0:02:46]} a6 {[%emt 0:01:49]} 8. h3 {[%emt 0:02:58]} Ba7 {[%emt 0:06:24]} 9. Nbd2 {[%emt 0:03:39]} Qe7 {[%emt 0:07:19]} 10. Bb3 {[%emt 0:04:56]} Be6 {[%emt 0:05:45]} 11. Bc2 {[%emt 0:01:11]} Nd7 {[%emt 0:03:17]} 12. Re1 {[%emt 0:02:55]} h6 {[%emt 0:09:23]} 13. Nf1 {[%emt 0:21:14]} f5 {[%emt 0:11:29]} 14. d4 {[%emt 0:01:51]} fxe4 {[%emt 0:05:43]} 15. Bxe4 {[%emt 0:00:06]} d5 {[%emt 0:00:20]} 16. Bc2 {[%emt 0:00:16]} e4 {[%emt 0:05:14]} 17. N3h2 {[%emt 0:01:33]} Nce5 {[%emt 0:07:32]} 18. Kh1 {[%emt 0:19:41]} Qh4 {[%emt 0:18:15]} 19. dxe5 {[%emt 0:03:33]} Bxf2 {[%emt 0:01:14]} 20. Re2 {[%emt 0:02:07]} Nxe5 {[%emt 0:03:01]} 21. Be3 {[%emt 0:00:43]} Bxe3 {[%emt 0:05:53]} 22. Nxe3 {[%emt 0:00:27]} c6 {[%emt 0:00:55]} 23. Qe1 {[%emt 0:02:17]} Qg5 {[%emt 0:01:03]} 24. Rd1 {[%emt 0:03:01]} Rad8 {[%emt 0:01:03]} 25. a5 {[%emt 0:06:20]} c5 {[%emt 0:01:24]} 26. Red2 {[%emt 0:00:44]} Nc6 {[%emt 0:01:17]} 27. Bb3 {[%emt 0:11:31]} c4 {[%emt 0:00:57]} 28. Bc2 {[%emt 0:00:32]} Nxa5 {[%emt 0:00:25]} 29. h4 {[%emt 0:00:59]} Qe5 {[%emt 0:00:35]} 30. Nhg4 {[%emt 0:00:50]} Bxg4 {[%emt 0:00:40]} 31. Rxd5 {[%emt 0:02:43]} Rxd5 {[%emt 0:00:46]} 32. Rxd5 {[%emt 0:00:02]} Qf4 {[%emt 0:00:34]} 33. Rxa5 {[%emt 0:00:16]} Be6 {[%emt 0:00:31]} 34. Ra1 {[%emt 0:00:24]} g5 {[%emt 0:00:17]} 35. Rd1 {[%emt 0:01:18]} gxh4 {[%emt 0:00:41]} 36. Rd4 {[%emt 0:00:32]} h3 {[%emt 0:00:20]} 37. Rxe4 {[%emt 0:00:37]} hxg2+ {[%emt 0:00:18]} 38. Nxg2 {[%emt 0:01:39]} Qf1+ {[%emt 0:00:52]} 39. Kh2 {[%emt 0:00:33]} Qxe1 {[%emt 0:00:34]} 40. Nxe1 {[%emt 0:00:32]} Bd5 {[%emt 0:00:31]} 41. Rd4 {[%emt 0:04:29]} Bc6 {[%emt 0:09:20]} 42. Rxc4 {[%emt 0:07:04]} Rf2+ {[%emt 0:11:59]} 43. Kg1 {[%emt 0:01:15]} Re2 {[%emt 0:00:32]} 44. Kf1 {[%emt 0:00:48]} Rh2 {[%emt 0:01:06]} 45. Rf4 {[%emt 0:02:44]} Kg7 {[%emt 0:01:02]} 46. Rf2 {[%emt 0:00:49]} Rh1+ {[%emt 0:00:59]} 47. Ke2 {[%emt 0:00:04]} Rh5 {[%emt 0:02:18]} 48. Nf3 {[%emt 0:01:46]} Rb5 {[%emt 0:00:30]} 49. Nd4 {[%emt 0:00:53]} Re5+ {[%emt 0:00:55]} 50. Kd2 {[%emt 0:00:16]} Bd7 {[%emt 0:00:37]} 51. Rg2+ {[%emt 0:02:38]} Kf7 {[%emt 0:00:46]} 52. Bb3+ {[%emt 0:00:47]} Ke7 {[%emt 0:03:20]} 53. Rg7+ {[%emt 0:00:01]} Kd8 {[%emt 0:00:19]} 54. Rh7 {[%emt 0:00:29]} a5 {[%emt 0:02:36]} 55. Rxh6 {[%emt 0:00:44]} a4 {[%emt 0:00:03]} 56. Bd1 {[%emt 0:00:26]} a3 {[%emt 0:01:26]} 57. bxa3 {[%emt 0:00:07]} Ra5 {[%emt 0:00:05]} 58. Bf3 {[%emt 0:00:44]} Rxa3 {[%emt 0:00:33]} 59. Bxb7 {[%emt 0:00:12]} 1-0

[Event "23rd OIBM 2019"]
[Site "Gmund am Tegernsee"]
[Date "2019.10.26"]
[Round "1.22"]
[White "Krzyzanowski, Marcin"]
[Black "Schoetzig, Detlef"]
[Result "1-0"]
[ECO "D02"]
[WhiteElo "2500"]
[BlackElo "2125"]
[Annotator "ChessBase"]
[PlyCount "61"]
[EventDate "2019.10.17"]
[EventType "swiss"]
[EventCountry "GER"]
[SourceTitle "playchess.com"]
[Source "ChessBase"]
[SourceQuality "1"]
[TimeControl "40/5400+30:1800+30"]

1. d4 {[%emt 0:00:00]} Nf6 {[%emt 0:00:00]} 2. Bf4 {[%emt 0:00:02]} d5 {[%emt 0:00:00]} 3. Nf3 {[%emt 0:00:18]} c6 {[%emt 0:01:07]} 4. Nbd2 {[%emt 0:00:51]} Bf5 {[%emt 0:00:22]} 5. h3 {[%emt 0:01:21]} h6 {[%emt 0:00:28]} 6. e3 {[%emt 0:00:08]} e6 {[%emt 0:01:13]} 7. Bd3 {[%emt 0:01:02]} Bxd3 {[%emt 0:01:48]} 8. cxd3 {[%emt 0:00:05]} Bd6 {[%emt 0:06:15]} 9. Ne5 {[%emt 0:01:09]} O-O {[%emt 0:00:50]} 10. g4 {[%emt 0:05:01]} Nh7 {[%emt 0:12:05]} 11. h4 {[%emt 0:01:37]} f6 {[%emt 0:02:14]} 12. Ng6 {[%emt 0:00:32]} Re8 {[%emt 0:10:04]} 13. Nf3 {[%emt 0:07:24]} Bxf4 {[%emt 0:07:26]} 14. exf4 {[%emt 0:06:58]} Nd7 {[%emt 0:07:17]} 15. g5 {[%emt 0:06:33]} Nhf8 {[%emt 0:12:54]} 16. Nxf8 {[%emt 0:07:47]} Rxf8 {[%emt 0:02:53]} 17. gxh6 {[%emt 0:02:33]} gxh6 {[%emt 0:00:23]} 18. f5 {[%emt 0:01:14]} exf5 {[%emt 0:04:46]} 19. h5 {[%emt 0:01:11]} Re8+ {[%emt 0:22:08]} 20. Kf1 {[%emt 0:01:36]} Nf8 {[%emt 0:00:23]} 21. Qd2 {[%emt 0:01:37]} Kh7 {[%emt 0:00:36]} 22. Qf4 {[%emt 0:00:42]} Qd7 {[%emt 0:04:13]} 23. Nh4 {[%emt 0:00:35]} Qe6 {[%emt 0:01:24]} 24. Nxf5 {[%emt 0:00:47]} Qe2+ {[%emt 0:00:10]} 25. Kg2 {[%emt 0:00:13]} Ne6 {[%emt 0:00:42]} 26. Qxh6+ {[%emt 0:00:30]} Kg8 {[%emt 0:00:01]} 27. Rh3 {[%emt 0:00:50]} Kf7 {[%emt 0:00:53]} 28. Qg6+ {[%emt 0:00:07]} Kf8 {[%emt 0:00:22]} 29. Qxf6+ {[%emt 0:00:05]} Kg8 {[%emt 0:00:09]} 30. Rg3+ {[%emt 0:00:05]} Kh7 {[%emt 0:00:37]} 31. Qh6# {[%emt 0:00:08]} 1-0

[Event "23rd OIBM 2019"]
[Site "Gmund am Tegernsee"]
[Date "2019.10.26"]
[Round "1.23"]
[White "Schliebener, Stephan"]
[Black "Del Rio De Angelis, Salvador G."]
[Result "0-1"]
[ECO "A45"]
[WhiteElo "2124"]
[BlackElo "2491"]
[Annotator "ChessBase"]
[PlyCount "64"]
[EventDate "2019.10.17"]
[EventType "swiss"]
[EventCountry "GER"]
[SourceTitle "playchess.com"]
[Source "ChessBase"]
[SourceQuality "1"]
[TimeControl "40/5400+30:1800+30"]

1. d4 {[%emt 0:00:00]} Nf6 {[%emt 0:00:00]} 2. Bf4 {[%emt 0:00:00]} c5 {[%emt 0:00:00]} 3. d5 {[%emt 0:00:14]} b5 {[%emt 0:00:15]} 4. c4 {[%emt 0:05:57]} Bb7 {[%emt 0:04:56]} 5. e3 {[%emt 0:04:33]} g6 {[%emt 0:03:23]} 6. Be5 {[%emt 0:06:18]} Bg7 {[%emt 0:02:39]} 7. b3 {[%emt 0:00:34]} O-O {[%emt 0:00:32]} 8. Nf3 {[%emt 0:00:39]} bxc4 {[%emt 0:02:01]} 9. bxc4 {[%emt 0:04:17]} d6 {[%emt 0:00:14]} 10. Bb2 {[%emt 0:00:21]} e6 {[%emt 0:01:40]} 11. dxe6 {[%emt 0:00:19]} fxe6 {[%emt 0:00:08]} 12. Be2 {[%emt 0:00:12]} Qb6 {[%emt 0:12:46]} 13. Qc1 {[%emt 0:06:05]} Nbd7 {[%emt 0:02:00]} 14. Nbd2 {[%emt 0:01:34]} Rab8 {[%emt 0:00:23]} 15. Bc3 {[%emt 0:01:40]} Qc6 {[%emt 0:00:48]} 16. O-O {[%emt 0:02:02]} g5 {[%emt 0:02:53]} 17. h3 {[%emt 0:07:33]} Rf7 {[%emt 0:05:36]} 18. Qc2 {[%emt 0:09:11]} g4 {[%emt 0:01:40]} 19. hxg4 {[%emt 0:00:48]} Nxg4 {[%emt 0:00:08]} 20. Nb3 {[%emt 0:08:52]} Bxc3 {[%emt 0:15:02]} 21. Qxc3 {[%emt 0:00:12]} Rg7 {[%emt 0:03:30]} 22. Na5 {[%emt 0:01:54]} Qc7 {[%emt 0:00:28]} 23. Nxb7 {[%emt 0:00:37]} Rxb7 {[%emt 0:00:23]} 24. Rad1 {[%emt 0:05:05]} Ndf6 {[%emt 0:01:16]} 25. Bd3 {[%emt 0:12:27]} Qc6 {[%emt 0:05:12]} 26. Rb1 {[%emt 0:08:21]} Ne5 {[%emt 0:06:55]} 27. Ne1 {[%emt 0:01:40]} Nf3+ {[%emt 0:18:57]} 28. Nxf3 {[%emt 0:00:06]} Rxg2+ {[%emt 0:01:44]} 29. Kxg2 {[%emt 0:02:02]} Rg7+ {[%emt 0:00:05]} 30. Kh2 {[%emt 0:00:37]} Ng4+ {[%emt 0:00:07]} 31. Kg3 Ne5+ {[%emt 0:00:13]} 32. Kh4 {[%emt 0:01:38]} Rg4+ {[%emt 0:01:01]} 0-1

[Event "23rd OIBM 2019"]
[Site "Gmund am Tegernsee"]
[Date "2019.10.26"]
[Round "1.24"]
[White "Yankelevich, Lev"]
[Black "Juergens, Klaus"]
[Result "1-0"]
[ECO "E81"]
[WhiteElo "2480"]
[BlackElo "2121"]
[Annotator "ChessBase"]
[PlyCount "75"]
[EventDate "2019.10.17"]
[EventType "swiss"]
[EventCountry "GER"]
[SourceTitle "playchess.com"]
[Source "ChessBase"]
[SourceQuality "1"]
[TimeControl "40/5400+30:1800+30"]

1. d4 {[%emt 0:04:22]} Nf6 {[%emt 0:00:00]} 2. c4 {[%emt 0:01:02]} g6 {[%emt 0:00:10]} 3. Nc3 {[%emt 0:00:40]} Bg7 {[%emt 0:00:11]} 4. e4 {[%emt 0:00:05]} d6 {[%emt 0:00:10]} 5. f3 {[%emt 0:01:17]} O-O {[%emt 0:00:13]} 6. Be3 {[%emt 0:00:04]} c5 {[%emt 0:00:14]} 7. Nge2 {[%emt 0:00:24]} cxd4 {[%emt 0:00:36]} 8. Nxd4 {[%emt 0:00:10]} Nc6 {[%emt 0:00:15]} 9. Qd2 {[%emt 0:00:29]} Bd7 {[%emt 0:00:46]} 10. Be2 {[%emt 0:00:50]} Nxd4 {[%emt 0:00:41]} 11. Bxd4 {[%emt 0:00:07]} a5 {[%emt 0:00:37]} 12. b3 {[%emt 0:04:41]} Bc6 {[%emt 0:01:25]} 13. O-O {[%emt 0:00:07]} Nd7 {[%emt 0:00:31]} 14. Be3 {[%emt 0:00:04]} Nc5 {[%emt 0:06:05]} 15. Rab1 {[%emt 0:00:52]} Qb6 {[%emt 0:02:14]} 16. Rfc1 {[%emt 0:00:07]} Rfc8 {[%emt 0:00:23]} 17. Rc2 {[%emt 0:00:05]} Qd8 {[%emt 0:01:04]} 18. Bf1 {[%emt 0:06:25]} h5 {[%emt 0:02:54]} 19. g3 {[%emt 0:01:46]} Qf8 {[%emt 0:03:45]} 20. Bg2 {[%emt 0:01:41]} e6 {[%emt 0:03:18]} 21. Rd1 {[%emt 0:07:53]} Rd8 {[%emt 0:01:26]} 22. Bf4 {[%emt 0:05:32]} Be5 {[%emt 0:02:58]} 23. Bh6 {[%emt 0:01:15]} Qe7 {[%emt 0:03:36]} 24. Bg5 {[%emt 0:00:55]} Bf6 {[%emt 0:00:22]} 25. Bxf6 {[%emt 0:00:29]} Qxf6 {[%emt 0:00:09]} 26. f4 {[%emt 0:00:02]} e5 {[%emt 0:17:44]} 27. f5 {[%emt 0:00:49]} g5 {[%emt 0:11:28]} 28. Qe3 {[%emt 0:04:09]} Kf8 {[%emt 0:04:16]} 29. h3 {[%emt 0:02:27]} h4 {[%emt 0:02:44]} 30. g4 {[%emt 0:03:13]} Qe7 {[%emt 0:03:22]} 31. Rb1 {[%emt 0:07:49]} f6 {[%emt 0:04:10]} 32. a3 {[%emt 0:01:15]} Qc7 {[%emt 0:03:03]} 33. Kh2 {[%emt 0:01:58]} Qb6 {[%emt 0:05:04]} 34. Rd2 {[%emt 0:03:01]} Na4 {[%emt 0:02:38]} 35. Qxb6 {[%emt 0:01:41]} Nxb6 {[%emt 0:00:08]} 36. Rbd1 {[%emt 0:00:49]} a4 {[%emt 0:02:22]} 37. c5 {[%emt 0:00:13]} Nd7 {[%emt 0:02:10]} 38. b4 {[%emt 0:00:09]} 1-0

[Event "23rd OIBM 2019"]
[Site "Gmund am Tegernsee"]
[Date "2019.10.26"]
[Round "1.26"]
[White "Vogel, Roven"]
[Black "Schmidt, Gerhard"]
[Result "1-0"]
[ECO "E71"]
[WhiteElo "2456"]
[BlackElo "2118"]
[Annotator "ChessBase"]
[PlyCount "73"]
[EventDate "2019.10.17"]
[EventType "swiss"]
[EventCountry "GER"]
[SourceTitle "playchess.com"]
[Source "ChessBase"]
[SourceQuality "1"]
[TimeControl "40/5400+30:1800+30"]

1. c4 {[%emt 0:02:09]} Nf6 {[%emt 0:00:00]} 2. Nc3 {[%emt 0:00:13]} g6 {[%emt 0:00:03]} 3. e4 {[%emt 0:00:26]} d6 {[%emt 0:00:17]} 4. d4 {[%emt 0:00:08]} Bg7 {[%emt 0:00:16]} 5. h3 {[%emt 0:00:08]} O-O {[%emt 0:00:33]} 6. Be3 {[%emt 0:00:12]} c5 {[%emt 0:01:17]} 7. Nge2 {[%emt 0:00:30]} cxd4 {[%emt 0:01:23]} 8. Nxd4 {[%emt 0:00:10]} b6 {[%emt 0:00:33]} 9. Qd2 {[%emt 0:01:43]} Bb7 {[%emt 0:00:42]} 10. f3 {[%emt 0:00:09]} Nbd7 {[%emt 0:07:44]} 11. O-O-O {[%emt 0:02:00]} a6 {[%emt 0:07:15]} 12. h4 {[%emt 0:05:32]} h5 {[%emt 0:08:42]} 13. Bh6 {[%emt 0:06:41]} Rc8 {[%emt 0:13:31]} 14. g4 {[%emt 0:03:56]} Ne5 {[%emt 0:18:03]} 15. Bxg7 {[%emt 0:14:39]} Kxg7 {[%emt 0:00:25]} 16. g5 {[%emt 0:00:10]} Nfd7 {[%emt 0:01:24]} 17. b3 {[%emt 0:02:37]} b5 {[%emt 0:04:01]} 18. cxb5 {[%emt 0:03:20]} axb5 {[%emt 0:05:40]} 19. Bxb5 {[%emt 0:01:40]} Nc5 {[%emt 0:02:06]} 20. Kb2 {[%emt 0:02:08]} Qb6 {[%emt 0:09:11]} 21. a4 {[%emt 0:13:58]} Ncd3+ {[%emt 0:08:55]} 22. Bxd3 {[%emt 0:00:12]} Qxd4 {[%emt 0:00:09]} 23. Be2 {[%emt 0:00:32]} Qf2 {[%emt 0:02:02]} 24. Qd4 {[%emt 0:09:30]} Qg3 {[%emt 0:00:42]} 25. Qe3 {[%emt 0:00:49]} Ng4 {[%emt 0:00:45]} 26. Qg1 {[%emt 0:05:27]} Qe5 {[%emt 0:04:55]} 27. Rd4 {[%emt 0:00:22]} Rxc3 {[%emt 0:00:58]} 28. Kxc3 {[%emt 0:00:07]} Qa5+ {[%emt 0:01:25]} 29. Kb2 {[%emt 0:00:18]} Rc8 {[%emt 0:00:20]} 30. Qe1 {[%emt 0:01:21]} Qe5 {[%emt 0:00:57]} 31. Qd2 {[%emt 0:00:24]} Nf2 {[%emt 0:00:25]} 32. Rf1 {[%emt 0:00:44]} Bxe4 {[%emt 0:00:42]} 33. fxe4 {[%emt 0:01:33]} Nxe4 {[%emt 0:00:10]} 34. Qe3 {[%emt 0:00:07]} Ng3 {[%emt 0:00:36]} 35. Qxe5+ {[%emt 0:00:13]} dxe5 {[%emt 0:00:04]} 36. Rc4 {[%emt 0:02:10]} Rd8 {[%emt 0:00:06]} 37. Rd1 {[%emt 0:00:14]} 1-0